bitfinex/quotes_BTCUSD_20240901
["timestamp","ask_amount","ask_price","bid_price","bid_amount"]
[1725152925164,3.3421318,59105.0,59104.0,0.0713006]
[1725152925943,2.2682868,59105.0,59104.0,0.0713006]
[1725152926268,3.2107648,59105.0,59104.0,0.0713006]
[1725152927925,3.1580648,59105.0,59104.0,0.0713006]
[1725152931264,3.1600648,59105.0,59104.0,0.0713006]
[1725152931944,3.1600648,59105.0,59104.0,0.0653006]
[1725152932364,3.1600648,59105.0,59104.0,0.0713006]
[1725152932592,3.1600648,59105.0,59104.0,0.0653006]
[1725152933030,3.1600648,59105.0,59104.0,0.0713006]
[1725152940027,2.2682868,59105.0,59104.0,0.0713006]
[1725152940265,3.9709988,59105.0,59104.0,0.0713006]
[1725152940730,3.9603168,59105.0,59104.0,0.0713006]
[1725152940951,3.8653328,59105.0,59104.0,0.0713006]
[1725152944737,3.5096988,59105.0,59104.0,0.0713006]
[1725152945174,3.4363578,59105.0,59104.0,0.0713006]
[1725152947197,3.3248688,59105.0,59104.0,0.0713006]
[1725152947668,3.3248688,59105.0,59104.0,0.0653006]
[1725152947883,3.3248688,59105.0,59104.0,0.0683006]
[1725152953192,3.3248688,59105.0,59104.0,0.0653006]
[1725152953400,2.2682868,59105.0,59104.0,0.0653006]
[1725152953604,3.3716368,59105.0,59104.0,0.0653006]
[1725152954237,3.3614488,59105.0,59104.0,0.0653006]
[1725152954441,3.3614488,59105.0,59104.0,0.0673006]
[1725152954648,3.3614488,59105.0,59104.0,0.0653006]
[1725152955124,3.3614488,59105.0,59104.0,0.0683006]
[1725152956425,2.44638215,59105.0,59104.0,0.0683006]
[1725152956639,2.56548493,59105.0,59104.0,0.0683006]
[1725152957280,2.56748493,59105.0,59104.0,0.0683006]
[1725152957743,2.56748493,59105.0,59104.0,0.1471006]
[1725152962812,2.56748493,59105.0,59104.0,0.1441006]
[1725152963034,2.73603657,59105.0,59104.0,0.1461006]
[1725152964072,2.41539257,59105.0,59104.0,0.1461006]
[1725152964288,2.41539257,59105.0,59104.0,0.1441006]
[1725152964289,3.25262357,59105.0,59104.0,0.1441006]
[1725152964524,2.57485693,59105.0,59104.0,0.1441006]
[1725152964726,2.57485693,59105.0,59104.0,0.1471006]
[1725152965927,2.57485693,59105.0,59104.0,0.1441006]
[1725152966125,2.57485693,59105.0,59104.0,0.1461006]
[1725152966332,2.57685693,59105.0,59104.0,0.1461006]
[1725152966946,2.57485693,59105.0,59104.0,0.1461006]
[1725152967588,2.23647693,59105.0,59104.0,0.1461006]
[1725152967835,0.96367919,59105.0,59104.0,0.1461006]
[1725152968085,0.96367919,59105.0,59104.0,0.1441006]
[1725152968086,1.30205919,59105.0,59104.0,0.1441006]
[1725152968350,0.96367919,59105.0,59104.0,0.1471006]
[1725152969257,0.93712543,59105.0,59104.0,0.1441006]
[1725152969485,1.03712543,59105.0,59104.0,0.1441006]
[1725152970167,0.608348,59105.0,59104.0,0.1491006]
[1725152970659,0.608348,59105.0,59104.0,0.1631006]
[1725152971537,0.777538,59105.0,59104.0,0.1631006]
[1725152972444,0.80408623,59105.0,59104.0,0.1631006]
[1725152978801,0.80408623,59105.0,59104.0,0.1731006]
[1725152978996,0.777538,59105.0,59104.0,0.1731006]
[1725152979917,0.608348,59105.0,59104.0,0.1731006]
[1725152980335,0.608348,59105.0,59104.0,0.3422936]
[1725152981609,0.608348,59105.0,59104.0,0.1731006]
[1725152987082,0.82789451,59105.0,59104.0,0.1731006]
[1725152987313,1.17291938,59105.0,59104.0,0.1731006]
[1725152988297,1.12256287,59105.0,59104.0,0.1731006]
[1725152988667,1.12256287,59105.0,59104.0,0.1871006]
[1725152988668,1.48749043,59105.0,59104.0,0.1871006]
[1725152989126,1.48749043,59105.0,59104.0,0.1731006]
[1725152989560,1.48749043,59105.0,59104.0,0.1871006]
[1725152989561,1.46094287,59105.0,59104.0,0.1871006]
[1725152993999,1.48570465,59105.0,59104.0,0.1871006]
[1725152994432,1.46094287,59105.0,59104.0,0.1871006]
[1725152994851,1.48749078,59105.0,59104.0,0.1871006]
[1725152995054,1.48749078,59105.0,59104.0,0.1731006]
[1725152995266,1.48749078,59105.0,59104.0,0.1871006]
[1725152995696,1.48749078,59105.0,59104.0,0.1731006]
[1725152996368,1.48749078,59105.0,59104.0,0.1871006]
[1725152996758,1.48749078,59105.0,59104.0,0.1731006]
[1725152997607,1.48749078,59105.0,59104.0,0.1871006]
[1725152998918,1.46094287,59105.0,59104.0,0.1871006]
[1725153002158,1.48749082,59105.0,59104.0,0.1871006]
[1725153002991,1.48084595,59105.0,59104.0,0.1871006]
[1725153005035,1.454298,59105.0,59104.0,0.1871006]
[1725153008447,1.48084607,59105.0,59104.0,0.1871006]
[1725153008865,1.48084607,59105.0,59104.0,0.1591006]
[1725153009087,1.48084607,59105.0,59104.0,0.1871006]
[1725153009499,1.48084607,59105.0,59104.0,0.1731006]
[1725153009724,1.48084607,59105.0,59104.0,0.1871006]
[1725153009958,1.48084607,59105.0,59104.0,0.2011006]
[1725153011127,1.454298,59105.0,59104.0,0.2011006]
[1725153013286,1.454298,59105.0,59104.0,0.65332199]
[1725153014248,1.454298,59105.0,59104.0,0.57700518]
[1725153017692,1.48084584,59105.0,59104.0,0.57700518]
[1725153018644,1.48084584,59105.0,59104.0,0.48320518]
[1725153018878,2.68144984,59105.0,59104.0,0.0420006]
[1725153019102,2.640738,59105.0,59104.0,0.0420006]
[1725153020185,2.37354248,59105.0,59104.0,0.0420006]
[1725153024751,1.98226248,59105.0,59104.0,0.0420006]
[1725153026663,2.15849048,59105.0,59104.0,0.0420006]
[1725153029658,1.98226248,59105.0,59104.0,0.0420006]
[1725153029894,2.42955748,59105.0,59104.0,0.0420006]
[1725153036329,2.76793748,59105.0,59104.0,0.0420006]
[1725153037386,2.93848912,59105.0,59104.0,0.0420006]
[1725153038469,2.93848912,59105.0,59104.0,0.0140006]
[1725153038675,2.93848912,59105.0,59104.0,6e-07]
[1725153038887,2.49119412,59105.0,59104.0,0.0130006]
[1725153039316,3.60128612,59105.0,59104.0,0.0130006]
[1725153039987,3.60128612,59105.0,59104.0,0.0240006]
[1725153041402,3.57401112,59105.0,59104.0,0.0240006]
[1725153047361,4.23475612,59105.0,59104.0,0.0240006]
[1725153047998,4.22439912,59105.0,59104.0,0.0240006]
[1725153055044,4.22439912,59105.0,59100.0,4e-07]
[1725153055045,1.863216,59101.0,59100.0,4e-07]
[1725153055263,2.32085326,59101.0,59100.0,4e-07]
[1725153055486,2.47792053,59101.0,59100.0,4e-07]
[1725153055701,2.83932353,59101.0,59100.0,4e-07]
[1725153055963,2.86587953,59101.0,59100.0,4e-07]
[1725153056182,3.03443117,59101.0,59100.0,4e-07]
[1725153056639,2.86498486,59101.0,59100.0,4e-07]
[1725153056858,2.76678486,59101.0,59100.0,4e-07]
[1725153057786,1.98251178,59095.0,59094.0,0.0618]
[1725153057996,3.31614878,59095.0,59094.0,0.0618]
[1725153058637,3.47601272,59095.0,59094.0,0.0618]
[1725153059275,3.47701272,59095.0,59094.0,0.0618]
[1725153059708,3.27155372,59095.0,59094.0,0.0618]
[1725153059934,3.13824666,59095.0,59094.0,0.0618]
[1725153060155,3.12129166,59095.0,59094.0,0.0618]
[1725153060761,3.14650928,59095.0,59094.0,0.0618]
[1725153061006,3.07362328,59095.0,59094.0,0.0618]
[1725153061225,3.24217492,59095.0,59094.0,0.0618]
[1725153061857,3.07239292,59095.0,59094.0,0.0618]
[1725153064382,3.07239292,59095.0,59094.0,0.0626998]
[1725153065278,1.6997455,59095.0,59094.0,0.0626998]
[1725153065523,1.6997455,59095.0,59094.0,0.1449998]
[1725153065524,1.98473628,59095.0,59094.0,0.1449998]
[1725153066824,1.98473628,59095.0,59094.0,0.00916281]
[1725153067236,1.81884828,59095.0,59094.0,0.00916281]
[1725153067500,1.97816328,59095.0,59094.0,0.00916281]
[1725153070142,1.97816328,59095.0,59094.0,0.06916281]
[1725153071446,1.98489161,59095.0,59094.0,0.06916281]
[1725153071874,1.98389161,59095.0,59094.0,0.06916281]
[1725153072316,1.98389161,59095.0,59091.0,0.0004]
[1725153072317,1.523047,59092.0,59091.0,0.0004]
[1725153072533,1.76514978,59092.0,59091.0,0.0004]
[1725153073188,1.646047,59092.0,59091.0,0.0004]
[1725153073406,1.646047,59092.0,59091.0,0.1427]
[1725153073631,1.77935406,59092.0,59091.0,0.0604]
[1725153074536,1.78135406,59092.0,59091.0,0.0854]
[1725153074750,2.63154639,59092.0,59091.0,0.0734]
[1725153074957,2.63154639,59092.0,59091.0,0.0874]
[1725153075432,2.63054639,59092.0,59091.0,0.0734]
[1725153075642,2.37242639,59092.0,59091.0,0.0734]
[1725153076271,2.31712639,59092.0,59091.0,0.0734]
[1725153076485,2.31712639,59092.0,59091.0,0.0742998]
[1725153076742,2.23593639,59092.0,59091.0,0.0852998]
[1725153077623,2.10262933,59092.0,59091.0,0.0852998]
[1725153078323,2.10262933,59092.0,59091.0,0.0252998]
[1725153083578,2.68141881,59092.0,59091.0,0.0252998]
[1725153084176,2.68341881,59092.0,59091.0,0.0252998]
[1725153086063,2.74581881,59092.0,59091.0,0.0252998]
[1725153086273,2.91437045,59092.0,59091.0,0.0252998]
[1725153089942,3.30316898,59092.0,59091.0,8e-07]
[1725153090156,2.84858665,59092.0,59091.0,8e-07]
[1725153090371,2.9368165,59092.0,59091.0,0.0009006]
[1725153090787,6.6080815,59092.0,59091.0,0.0009006]
[1725153091022,6.6060815,59092.0,59091.0,0.0008998]
[1725153091225,6.6070815,59092.0,59091.0,0.0098998]
[1725153091439,6.6080815,59092.0,59091.0,0.0178998]
[1725153091865,6.2824765,59092.0,59091.0,0.0178998]
[1725153092344,6.2539905,59092.0,59091.0,0.0178998]
[1725153093463,6.2204265,59092.0,59091.0,0.0178998]
[1725153094081,2.9368165,59092.0,59091.0,0.0178998]
[1725153094290,6.6239085,59092.0,59091.0,0.0178998]
[1725153096224,6.6239085,59092.0,59091.0,8e-07]
[1725153096431,1.861882,59080.0,59079.0,0.0609]
[1725153096641,2.10398478,59080.0,59079.0,0.0609]
[1725153096858,2.34431926,59080.0,59079.0,0.0609]
[1725153097709,2.37088114,59080.0,59079.0,0.0609]
[1725153098960,2.37288114,59080.0,59079.0,0.0629]
[1725153099166,2.41802583,59080.0,59079.0,0.0629]
[1725153100436,2.41802583,59080.0,59079.0,0.0609]
[1725153100437,2.41602583,59080.0,59079.0,0.0609]
[1725153100650,2.41802583,59080.0,59079.0,0.0609]
[1725153102970,2.44318032,59080.0,59079.0,0.0617998]
[1725153106919,2.44518032,59080.0,59079.0,0.0617998]
[1725153110689,1.94040885,59080.0,59079.0,0.0617998]
[1725153110897,2.05951163,59080.0,59079.0,0.0617998]
[1725153132370,1.80810194,59080.0,59079.0,0.0617998]
[1725153132787,1.97736394,59080.0,59079.0,0.0617998]
[1725153134138,1.85826116,59080.0,59079.0,0.0617998]
[1725153134357,1.97736394,59080.0,59079.0,0.0617998]
[1725153135068,1.97536394,59080.0,59079.0,0.0617998]
[1725153135280,1.97636394,59080.0,59079.0,0.0617998]
[1725153135490,1.97736394,59080.0,59079.0,0.0617998]
[1725153135952,1.85726116,59080.0,59079.0,0.0617998]
[1725153136177,1.97536394,59080.0,59079.0,0.1398998]
[1725153136386,1.97636394,59080.0,59079.0,0.1398998]
[1725153137291,1.85626116,59080.0,59079.0,0.1398998]
[1725153137509,1.85726116,59080.0,59079.0,0.1398998]
[1725153137719,1.85626116,59080.0,59079.0,0.1398998]
[1725153137928,1.85726116,59080.0,59079.0,0.1398998]
[1725153138371,1.85726116,59080.0,59079.0,0.1548998]
[1725153138372,0.69253467,59080.0,59079.0,0.1548998]
[1725153138591,0.69353467,59080.0,59079.0,0.1548998]
[1725153138820,0.41059648,59080.0,59079.0,0.1548998]
[1725153139037,0.24133448,59080.0,59079.0,0.2057986]
[1725153139479,0.24133448,59080.0,59079.0,0.1548998]
[1725153139703,0.24233448,59080.0,59079.0,0.1548998]
[1725153140148,0.41059648,59080.0,59079.0,0.231248]
[1725153140382,0.41159648,59080.0,59079.0,0.231248]
[1725153140601,0.24133448,59080.0,59079.0,0.1548998]
[1725153140817,0.41159648,59080.0,59079.0,0.1578998]
[1725153141078,0.41159648,59080.0,59079.0,0.1548998]
[1725153141079,0.41141448,59080.0,59079.0,0.1548998]
[1725153141286,0.51141448,59080.0,59079.0,0.1548998]
[1725153141710,0.84993848,59080.0,59079.0,0.27400258]
[1725153141916,0.85093848,59080.0,59079.0,0.33385942]
[1725153142129,0.87749309,59080.0,59079.0,0.33385942]
[1725153142395,0.87649309,59080.0,59079.0,0.35935078]
[1725153142617,0.87649309,59080.0,59079.0,0.73540856]
[1725153142864,0.87749309,59080.0,59079.0,0.73540856]
[1725153143538,0.87749309,59080.0,59079.0,0.27400258]
[1725153143539,0.87649309,59080.0,59079.0,0.27400258]
[1725153143995,0.87749309,59080.0,59079.0,0.27700258]
[1725153144187,0.87749309,59080.0,59079.0,0.27400258]
[1725153144451,0.30249645,59080.0,59079.0,0.27700258]
[1725153144877,0.29963461,59080.0,59079.0,0.27700258]
[1725153145705,0.03037261,59080.0,59079.0,0.27700258]
[1725153146147,0.19963461,59080.0,59079.0,0.32782973]
[1725153147707,0.19963461,59080.0,59079.0,0.27700258]
[1725153148351,0.03037261,59080.0,59079.0,0.27700258]
[1725153148797,0.19963461,59080.0,59079.0,0.27700258]
[1725153149229,0.17308,59080.0,59079.0,0.27700258]
[1725153149442,0.003818,59080.0,59079.0,0.27700258]
[1725153150640,0.17308,59080.0,59079.0,0.27700258]
[1725153152403,0.19963409,59080.0,59079.0,0.27700258]
[1725153153477,0.19881609,59080.0,59079.0,0.27700258]
[1725153153704,0.16926,59081.0,59080.0,0.1391]
[1725153153961,0.16926,59081.0,59080.0,0.26820278]
[1725153155042,0.17126,59081.0,59080.0,0.27120278]
[1725153155479,0.17126,59081.0,59080.0,0.1521]
[1725153155687,0.17126,59081.0,59080.0,0.27120278]
[1725153156517,0.17126,59081.0,59080.0,0.1521]
[1725153156726,0.19781406,59081.0,59080.0,0.27120278]
[1725153158589,0.53633206,59081.0,59080.0,0.27120278]
[1725153159093,0.509778,59081.0,59080.0,0.27120278]
[1725153159865,0.509778,59081.0,59080.0,0.26820278]
[1725153159866,0.508778,59081.0,59080.0,0.26820278]
[1725153160132,0.508778,59081.0,59080.0,0.27420278]
[1725153160390,0.509778,59081.0,59080.0,0.27420278]
[1725153160611,0.508778,59081.0,59080.0,0.26820278]
[1725153160837,0.508778,59081.0,59080.0,0.27420278]
[1725153161026,0.509778,59081.0,59080.0,0.27420278]
[1725153161838,0.848296,59081.0,59080.0,0.27420278]
[1725153162070,0.847296,59081.0,59080.0,0.27420278]
[1725153162302,0.848296,59081.0,59080.0,0.27420278]
[1725153162604,0.8748501,59081.0,59080.0,0.27420278]
[1725153164291,1.2133681,59081.0,59080.0,0.0817]
[1725153164503,1.3133681,59081.0,59080.0,0.011]
[1725153164923,1.3133681,59081.0,59080.0,0.006]
[1725153165133,1.3141861,59081.0,59080.0,0.011]
[1725153177157,1.3141861,59081.0,59080.0,0.0118998]
[1725153177810,1.3141861,59081.0,59080.0,0.0068998]
[1725153178020,1.3141861,59081.0,59080.0,0.0118998]
[1725153178452,1.287632,59081.0,59080.0,0.0118998]
[1725153181773,1.31418885,59081.0,59080.0,0.0118998]
[1725153185033,1.287632,59081.0,59080.0,0.0118998]
[1725153185676,1.287632,59081.0,59080.0,0.0724998]
[1725153187601,1.287632,59081.0,59080.0,0.0068998]
[1725153187814,1.71515,59081.0,59080.0,0.0068998]
[1725153188257,1.6757066,59081.0,59080.0,0.0068998]
[1725153196194,1.6757066,59081.0,59080.0,0.0118998]
[1725153196195,1.3141886,59081.0,59080.0,0.0118998]
[1725153196412,1.3141886,59081.0,59080.0,0.0724998]
[1725153200548,1.3141886,59081.0,59080.0,0.0118998]
[1725153203745,1.287632,59081.0,59080.0,0.0118998]
[1725153207026,1.31418894,59081.0,59080.0,0.0118998]
[1725153209170,1.287632,59081.0,59080.0,0.0118998]
[1725153213778,1.31418901,59081.0,59080.0,0.0118998]
[1725153219221,1.287632,59081.0,59080.0,0.0118998]
[1725153222428,1.31418922,59081.0,59080.0,0.0068998]
[1725153222628,1.79481,59081.0,59080.0,0.0068998]
[1725153231532,1.96336164,59081.0,59080.0,0.0068998]
[1725153232452,1.79481,59081.0,59080.0,0.0068998]
[1725153235641,1.80154051,59081.0,59080.0,0.0068998]
[1725153237681,2.14005851,59081.0,59080.0,0.0068998]
[1725153241714,1.90683543,59081.0,59080.0,0.0068998]
[1725153243281,2.07609543,59081.0,59080.0,0.0068998]
[1725153247312,2.07509543,59081.0,59080.0,0.0008998]
[1725153247530,2.07609543,59081.0,59080.0,0.0148998]
[1725153247792,2.07509543,59081.0,59080.0,0.0148998]
[1725153248030,2.07609543,59081.0,59080.0,0.0268998]
[1725153249254,2.04953821,59081.0,59080.0,0.0268998]
[1725153249783,2.0428077,59081.0,59080.0,0.0268998]
[1725153250780,2.06936922,59081.0,59080.0,0.0268998]
[1725153252638,1.61174844,59081.0,59080.0,0.0268998]
[1725153252899,1.73085122,59081.0,59080.0,0.0268998]
[1725153258762,1.61174844,59081.0,59080.0,0.0268998]
[1725153270501,1.61074844,59081.0,59080.0,0.0148998]
[1725153270937,1.61074844,59081.0,59080.0,0.0198998]
[1725153271357,1.60974844,59081.0,59080.0,0.0008998]
[1725153271527,1.61074844,59081.0,59080.0,0.0068998]
[1725153272118,1.61074844,59081.0,59080.0,0.0118998]
[1725153278138,1.94926644,59081.0,59080.0,0.0118998]
[1725153278784,2.42507744,59081.0,59080.0,0.0118998]
[1725153279770,2.63675944,59081.0,59080.0,0.0118998]
[1725153280686,2.36581544,59081.0,59080.0,0.0118998]
[1725153284321,2.36581544,59081.0,59080.0,0.0068998]
[1725153284737,2.36581544,59081.0,59080.0,0.0108998]
[1725153284908,2.29771344,59081.0,59080.0,0.0048998]
[1725153285117,2.30444403,59081.0,59080.0,0.0098998]
[1725153289076,2.27788251,59081.0,59080.0,0.0098998]
[1725153291850,2.3044425,59081.0,59080.0,0.0098998]
[1725153293144,2.3044425,59081.0,59080.0,0.0058998]
[1725153293616,2.3044425,59081.0,59080.0,0.0078998]
[1725153293818,2.3044425,59081.0,59080.0,0.0028998]
[1725153294032,2.3044425,59081.0,59080.0,0.0008998]
[1725153294253,2.3044425,59081.0,59080.0,0.0038998]
[1725153295080,2.3044425,59081.0,59080.0,0.0008998]
[1725153295865,2.3044425,59081.0,59079.0,0.0008998]
[1725153295866,1.939782,59080.0,59079.0,6e-07]
[1725153296118,4.33585439,59080.0,59079.0,6e-07]
[1725153296317,2.12933739,59080.0,59079.0,6e-07]
[1725153297850,2.12933739,59080.0,59079.0,0.0020006]
[1725153298050,2.29788903,59080.0,59079.0,0.0020006]
[1725153298206,4.27617503,59080.0,59079.0,0.0020006]
[1725153298482,4.19239403,59080.0,59079.0,0.0020006]
[1725153300235,4.19239403,59080.0,59079.0,0.0010006]
[1725153300440,4.11449403,59080.0,59079.0,6e-07]
[1725153300675,1.65408891,59080.0,59079.0,6e-07]
[1725153300850,1.65508891,59080.0,59079.0,0.0645006]
[1725153301351,1.65408891,59080.0,59079.0,0.0645006]
[1725153303500,1.67904426,59080.0,59079.0,0.0645006]
[1725153303712,1.68004426,59080.0,59079.0,0.0645006]
[1725153306674,1.68004426,59080.0,59079.0,6e-07]
[1725153306675,2.88716903,59080.0,59079.0,6e-07]
[1725153306885,1.82213679,59080.0,59079.0,6e-07]
[1725153307500,1.94123957,59080.0,59079.0,6e-07]
[1725153308125,1.88235181,59080.0,59079.0,6e-07]
[1725153309187,1.79914704,59080.0,59079.0,6e-07]
[1725153310757,1.79914704,59080.0,59079.0,0.0627006]
[1725153310963,2.25829704,59080.0,59079.0,0.0627006]
[1725153318955,2.18917704,59080.0,59079.0,0.0627006]
[1725153319249,1.33478935,59080.0,59079.0,0.0627006]
[1725153319452,1.33478935,59080.0,59079.0,0.1433006]
[1725153320190,1.33560735,59080.0,59079.0,0.1433006]
[1725153320895,1.287652,59080.0,59079.0,0.1483006]
[1725153321120,1.287652,59080.0,59079.0,0.19921108]
[1725153321121,1.187652,59080.0,59079.0,0.19921108]
[1725153321859,1.186652,59080.0,59079.0,0.1483006]
[1725153322084,1.186652,59080.0,59079.0,0.1513006]
[1725153322085,1.185652,59080.0,59079.0,0.1513006]
[1725153322310,1.285652,59080.0,59079.0,0.1553006]
[1725153322526,1.285652,59080.0,59079.0,0.1513006]
[1725153322744,1.285652,59080.0,59079.0,0.1483006]
[1725153322997,1.286652,59080.0,59079.0,0.1543006]
[1725153323922,1.287652,59080.0,59079.0,0.1613006]
[1725153324870,1.31420907,59080.0,59079.0,0.1613006]
[1725153327163,1.31420907,59080.0,59079.0,0.29040338]
[1725153327164,0.02937507,59080.0,59079.0,0.29040338]
[1725153327382,0.53716107,59080.0,59079.0,0.29378853]
[1725153327590,0.53716107,59080.0,59079.0,0.74614827]
[1725153327591,0.19863707,59080.0,59079.0,0.74614827]
[1725153328231,0.19863707,59080.0,59079.0,0.37008816]
[1725153328410,0.29863707,59080.0,59079.0,0.37008816]
[1725153329331,0.29863707,59080.0,59079.0,0.29378853]
[1725153329570,0.29863707,59080.0,59079.0,0.37008816]
[1725153329773,0.29863707,59080.0,59079.0,0.74613963]
[1725153330001,0.27208,59080.0,59079.0,0.74613963]
[1725153330139,0.27208,59080.0,59079.0,0.37008816]
[1725153331187,0.27108,59080.0,59079.0,0.28678853]
[1725153331366,0.27208,59080.0,59079.0,0.30078853]
[1725153331815,0.001818,59080.0,59079.0,0.54035216]
[1725153332021,0.001818,59080.0,59079.0,0.54635216]
[1725153332253,0.001818,59080.0,59079.0,0.47005253]
[1725153332448,0.001818,59080.0,59079.0,0.46405253]
[1725153332862,0.002818,59080.0,59079.0,0.47805253]
[1725153333070,0.002818,59080.0,59079.0,0.48005253]
[1725153333276,0.02937182,59080.0,59079.0,0.48005253]
[1725153333694,0.02937182,59080.0,59079.0,1.23341016]
[1725153333905,0.02937182,59080.0,59079.0,1.23141016]
[1725153334105,0.02937182,59080.0,59079.0,1.15511053]
[1725153334716,0.02937182,59080.0,59079.0,1.15711053]
[1725153335121,0.02937182,59080.0,59079.0,1.15511053]
[1725153335524,0.02937182,59080.0,59079.0,1.15711053]
[1725153336012,0.02937182,59080.0,59079.0,1.60930139]
[1725153336225,0.02937182,59080.0,59079.0,1.60930126]
[1725153337323,0.02937182,59080.0,59079.0,1.23326751]
[1725153337958,0.000818,59084.0,59083.0,0.519759]
[1725153338195,0.000818,59084.0,59083.0,0.77396178]
[1725153338456,0.000818,59084.0,59083.0,1.58998851]
[1725153338668,0.000818,59084.0,59083.0,1.48844587]
[1725153338879,0.000818,59084.0,59083.0,1.83695187]
[1725153339090,0.000818,59084.0,59083.0,1.96388017]
[1725153339339,0.001818,59084.0,59083.0,1.85095187]
[1725153339553,0.001818,59084.0,59083.0,1.86495187]
[1725153339760,0.001818,59084.0,59083.0,1.85095187]
[1725153340187,0.001818,59084.0,59083.0,1.95232853]
[1725153340843,0.000818,59084.0,59083.0,1.93832853]
[1725153341123,0.000818,59084.0,59083.0,1.95232853]
[1725153341335,0.000818,59084.0,59083.0,1.86495187]
[1725153341750,0.000818,59084.0,59083.0,1.96632853]
[1725153342168,0.000818,59084.0,59083.0,1.86495187]
[1725153344286,0.000818,59084.0,59083.0,1.96621578]
[1725153344512,0.000818,59084.0,59083.0,1.96616968]
[1725153344720,0.000818,59084.0,59083.0,1.97616968]
[1725153344967,0.000818,59084.0,59083.0,1.87490345]
[1725153345179,0.000818,59084.0,59083.0,1.97614705]
[1725153345595,0.000818,59084.0,59083.0,1.87490345]
[1725153346233,0.000818,59084.0,59083.0,1.97612933]
[1725153346646,0.0273652,59084.0,59083.0,1.97612933]
[1725153346875,0.0273652,59084.0,59083.0,1.97612939]
[1725153347081,0.0273652,59084.0,59083.0,1.87490345]
[1725153347300,0.0273652,59084.0,59083.0,1.97611126]
[1725153347992,0.0273652,59084.0,59083.0,1.87490345]
[1725153350225,0.0273652,59084.0,59083.0,1.97607002]
[1725153351103,0.27334332,59100.0,59099.0,0.0804]
[1725153351370,0.54254732,59100.0,59099.0,0.0804]
[1725153352254,0.88096132,59100.0,59099.0,0.0804]
[1725153352503,0.88096132,59100.0,59099.0,0.0834]
[1725153354949,0.88177932,59100.0,59099.0,0.0834]
[1725153355406,0.88177932,59100.0,59099.0,0.003]
[1725153355407,1.42997659,59100.0,59099.0,0.003]
[1725153355629,1.87079059,59100.0,59099.0,0.003]
[1725153356095,1.75168781,59100.0,59099.0,0.003]
[1725153356310,1.72680732,59100.0,59099.0,0.003]
[1725153356788,1.75335652,59100.0,59099.0,0.003]
[1725153359539,2.14603452,59100.0,59099.0,0.003]
[1725153359772,2.02172452,59100.0,59099.0,0.003]
[1725153361732,2.15867052,59100.0,59099.0,0.003]
[1725153363686,2.15867052,59100.0,59099.0,0.002]
[1725153363892,1.522971,59095.0,59094.0,0.005]
[1725153364091,0.573973,59093.0,59092.0,0.005]
[1725153364430,1.76602,59093.0,59092.0,0.005]
[1725153365252,1.76602,59093.0,59092.0,0.013]
[1725153365666,1.76602,59093.0,59092.0,0.017]
[1725153366112,1.76602,59093.0,59092.0,0.012]
[1725153366519,1.766838,59093.0,59092.0,0.012]
[1725153366938,1.766838,59093.0,59092.0,0.013]
[1725153367118,1.766838,59093.0,59092.0,0.02]
[1725153367566,1.7933898,59093.0,59092.0,0.02]
[1725153367785,1.7933898,59093.0,59092.0,0.005]
[1725153368056,1.7933898,59093.0,59092.0,0.02]
[1725153368740,2.92527899,59093.0,59092.0,0.015]
[1725153368967,2.87874999,59093.0,59092.0,0.015]
[1725153369195,2.85219819,59093.0,59092.0,0.015]
[1725153370366,1.78540678,59082.0,59081.0,0.0008998]
[1725153370635,2.25308078,59082.0,59081.0,0.0008998]
[1725153370883,2.06208478,59082.0,59081.0,0.0008998]
[1725153371333,2.40059678,59082.0,59081.0,0.0008998]
[1725153371564,2.40159678,59082.0,59081.0,0.0008998]
[1725153371995,2.40059678,59082.0,59081.0,0.0008998]
[1725153372261,2.96925578,59082.0,59081.0,0.0008998]
[1725153372484,2.99781426,59082.0,59081.0,0.0008998]
[1725153372716,2.81545726,59082.0,59081.0,0.0008998]
[1725153372959,3.32895219,59082.0,59081.0,8e-07]
[1725153373199,0.214973,59076.0,59075.0,0.8581904]
[1725153373439,5.05,59081.0,59051.0,0.0004]
[1725153373440,0.169342,59052.0,59051.0,0.0004]
[1725153373671,3.43864978,59052.0,59051.0,0.0004]
[1725153373912,3.77688042,59052.0,59051.0,0.0004]
[1725153374142,3.59139788,59052.0,59051.0,0.0004]
[1725153374386,3.59139788,59052.0,59044.0,0.008998]
[1725153374387,1.524258,59045.0,59044.0,0.008998]
[1725153374618,2.13840178,59045.0,59044.0,0.008998]
[1725153374876,2.23840178,59045.0,59044.0,0.008998]
[1725153375136,2.26140178,59045.0,59044.0,0.008998]
[1725153375368,1.385234,59045.0,59044.0,0.008998]
[1725153375837,1.51233678,59045.0,59044.0,0.009998]
[1725153376071,1.43563678,59045.0,59044.0,0.009998]
[1725153376302,1.316534,59045.0,59044.0,0.009998]
[1725153376592,1.00438469,59045.0,59044.0,0.009998]
[1725153376822,1.00438469,59045.0,59044.0,0.014998]
[1725153376823,0.64266069,59045.0,59044.0,0.014998]
[1725153377408,0.97338469,59045.0,59044.0,0.013998]
[1725153377652,0.63466069,59045.0,59044.0,0.017998]
[1725153377904,0.63466069,59045.0,59044.0,0.013998]
[1725153378164,0.29593669,59045.0,59044.0,0.100498]
[1725153378389,0.1,59045.0,59044.0,0.100498]
[1725153378633,0.338699,59050.0,59046.0,0.01]
[1725153378634,0.1,59049.0,59046.0,0.01]
[1725153378858,0.338713,59047.0,59046.0,0.01]
[1725153379091,0.438713,59047.0,59046.0,0.01]
[1725153379324,0.438713,59047.0,59046.0,0.015]
[1725153379325,0.269356,59047.0,59046.0,0.015]
[1725153379632,0.608069,59047.0,59046.0,0.015]
[1725153379898,0.19291688,59060.0,59046.0,0.015]
[1725153379899,0.338684,59052.0,59051.0,0.0741]
[1725153380154,0.508026,59052.0,59051.0,0.0791]
[1725153380418,0.338667,59055.0,59053.0,0.005]
[1725153380419,0.169337,59054.0,59053.0,0.005]
[1725153380879,0.50801,59054.0,59053.0,0.005]
[1725153381368,0.60801,59054.0,59053.0,0.005]
[1725153381648,0.60801,59054.0,59053.0,0.015]
[1725153382357,0.269337,59054.0,59053.0,0.093]
[1725153382593,0.60801,59054.0,59053.0,0.093]
[1725153382834,0.63457886,59054.0,59053.0,0.093]
[1725153383080,0.29590586,59054.0,59053.0,0.093]
[1725153383381,0.12656886,59054.0,59053.0,0.093]
[1725153384790,0.02656886,59054.0,59053.0,0.093]
[1725153385036,0.02656886,59054.0,59053.0,0.09638643]
[1725153385287,0.02656886,59054.0,59053.0,0.093]
[1725153385519,0.02656886,59054.0,59053.0,0.601017]
[1725153385750,0.02656886,59054.0,59053.0,0.667117]
[1725153385978,0.02656886,59054.0,59053.0,1.005795]
[1725153386212,0.02656886,59054.0,59053.0,1.079415]